[Event "Maria Albulet Memorial 2018"]
[Site "Braila"]
[Date "2018.11.07"]
[Round "6"]
[White "Otetea, Ioana"]
[Black "Uzuneanu, Gabriela"]
[Result "1-0"]
[ECO "C28"]
[WhiteElo "1602"]
[BlackElo "1571"]
[Annotator "NA RC"]
[PlyCount "119"]
[EventDate "2018.11.03"]
[EventType "swiss"]
[EventCountry "ROU"]
[SourceTitle "playchess.com"]
[Source "ChessBase"]
[SourceQuality "1"]
[TimeControl "40/5400+30:900+30"]

1. e4 {[%emt 0:00:00]} e5 {[%emt 0:00:00]} 2. Nc3 {[%emt 0:00:00]} Nc6 {[%emt 0:00:00]} 3. Bc4 {[%emt 0:00:00]} Nf6 {[%emt 0:00:11]} 4. d3 {[%emt 0:00:00]} h6 {[%emt 0:01:05]} 5. Nge2 {[%emt 0:01:04]} Bc5 {[%emt 0:01:48]} 6. O-O {[%emt 0:01:16]} d6 {[%emt 0:00:13]} 7. h3 {[%emt 0:02:22]} Be6 {[%emt 0:02:52]} 8. Bb3 {[%emt 0:08:17]} O-O {[%emt 0:00:11]} 9. Ng3 {[%emt 0:01:43]} Qd7 {[%emt 0:04:59]} 10. Kh2 {[%emt 0:02:34]} Nh7 {[%emt 0:25:33]} 11. f4 {[%emt 0:07:13]} Bxb3 {[%emt 0:01:09]} 12. axb3 {[%emt 0:00:19]} exf4 {[%emt 0:03:36]} 13. Bxf4 {[%emt 0:00:14]} Ne7 {[%emt 0:00:08]} 14. d4 {[%emt 0:06:16]} Bb6 {[%emt 0:00:21]} 15. Be3 {[%emt 0:01:40]} Rad8 {[%emt 0:02:40]} 16. Qf3 {[%emt 0:02:32]} a6 {[%emt 0:07:47]} 17. Nh5 {[%emt 0:05:40]} Ng6 {[%emt 0:03:04]} 18. Nd5 {[%emt 0:01:32]} f6 {[%emt 0:02:51]} 19. Qg3 {[%emt 0:02:46]} Qe8 {[%emt 0:00:10]} 20. Ndf4 {[%emt 0:04:58]} Ng5 {[%emt 0:02:05]} 21. h4 {[%emt 0:02:10]} Nxf4 {[%emt 0:00:17]} 22. Nxf4 {[%emt 0:11:27]} Nxe4 {[%emt 0:00:12]} 23. Qh3 {[%emt 0:01:42]} f5 {[%emt 0:03:09]} 24. Nd5 {[%emt 0:06:43]} Qd7 {[%emt 0:05:50]} 25. Rxf5 {[%emt 0:04:17]} Rxf5 {[%emt 0:02:52]} 26. Qxf5 {[%emt 0:00:11]} Qxf5 {[%emt 0:00:33]} 27. Ne7+ {[%emt 0:00:07]} Kh7 {[%emt 0:01:17]} 28. Nxf5 {[%emt 0:00:08]} Re8 {[%emt 0:00:54]} 29. c3 {[%emt 0:05:04]} g6 {[%emt 0:00:09]} 30. Nxh6 {[%emt 0:01:27]} Nxc3 {[%emt 0:00:17]} 31. Ng4 {[%emt 0:00:27]} Nd5 {[%emt 0:00:23]} 32. Bg1 {[%emt 0:02:44]} Re4 {[%emt 0:02:30]} 33. Kg3 {[%emt 0:03:36]} Kg7 {[%emt 0:01:03]} 34. Rd1 {[%emt 0:01:26]} Re2 {[%emt 0:00:10]} 35. Kf3 {[%emt 0:02:36]} Rxb2 {[%emt 0:00:14]} 36. Rd3 {[%emt 0:03:00]} Ne7 {[%emt 0:04:04]} 37. g3 {[%emt 0:01:30]} Nc6 {[%emt 0:00:31]} 38. Ke4 {[%emt 0:04:44]} Na5 {[%emt 0:00:05]} 39. b4 {[%emt 0:00:34]} Rxb4 {[%emt 0:00:06]} 40. Rf3 {[%emt 0:00:00]} Rb3 {[%emt 0:00:00]} 41. Be3 {[%emt 0:01:34]} d5+ {[%emt 0:05:55]} 42. Kxd5 {[%emt 0:02:07]} Rb5+ {[%emt 0:02:15]} 43. Ke6 {[%emt 0:00:15]} Rf5 {[%emt 0:00:28]} 44. Rxf5 {[%emt 0:01:44]} gxf5 {[%emt 0:00:05]} 45. Kxf5 {[%emt 0:00:15]} Nc6 {[%emt 0:00:09]} 46. d5 {[%emt 0:04:26]} Ne7+ {[%emt 0:02:18]} 47. Ke6 {[%emt 0:00:20]} Bxe3 {[%emt 0:00:07]} 48. Nxe3 {[%emt 0:00:13]} Ng6 {[%emt 0:04:34]} 49. Kd7 {[%emt 0:03:10]} b5 {[%emt 0:01:28]} 50. Kxc7 {[%emt 0:00:15]} b4 {[%emt 0:00:15]} 51. d6 {[%emt 0:01:11]} Ne5 {[%emt 0:00:17]} 52. Nc4 {[%emt 0:04:06]} b3 {[%emt 0:01:00]} 53. Nb2 {[%emt 0:01:13]} a5 {[%emt 0:00:12]} 54. d7 {[%emt 0:00:05]} Nxd7 {[%emt 0:00:13]} 55. Kxd7 {[%emt 0:00:05]} Kg6 {[%emt 0:00:17]} 56. Kc6 {[%emt 0:00:18]} a4 {[%emt 0:00:23]} 57. Nxa4 {[%emt 0:00:08]} Kf5 {[%emt 0:00:07]} 58. Kd5 {[%emt 0:00:07]} Kg4 {[%emt 0:00:05]} 59. Kc4 {[%emt 0:00:06]} Kxg3 {[%emt 0:00:06]} 60. h5 {[%emt 0:00:05]} 1-0

[Event "Maria Albulet Memorial 2018"]
[Site "Braila"]
[Date "2018.11.07"]
[Round "6"]
[White "Maria, Lia-Alexandra"]
[Black "Hrib, Andrada-Ioana"]
[Result "0-1"]
[ECO "D37"]
[WhiteElo "1479"]
[BlackElo "1770"]
[Annotator "NA RC"]
[PlyCount "148"]
[EventDate "2018.11.03"]
[EventType "swiss"]
[EventCountry "ROU"]
[SourceTitle "playchess.com"]
[Source "ChessBase"]
[SourceQuality "1"]
[TimeControl "40/5400+30:900+30"]

1. d4 {[%emt 0:00:00]} d5 {[%emt 0:00:00]} 2. c4 {[%emt 0:00:00]} e6 {[%emt 0:00:00]} 3. Nf3 {[%emt 0:00:12]} Nf6 {[%emt 0:00:00]} 4. Nc3 {[%emt 0:00:14]} Be7 {[%emt 0:00:00]} 5. Bf4 {[%emt 0:00:29]} O-O {[%emt 0:00:00]} 6. e3 {[%emt 0:00:16]} c5 {[%emt 0:05:44]} 7. Be2 {[%emt 0:01:36]} a6 {[%emt 0:02:46]} 8. dxc5 {[%emt 0:01:10]} Bxc5 {[%emt 0:00:04]} 9. cxd5 {[%emt 0:00:52]} Nxd5 {[%emt 0:03:09]} 10. Nxd5 {[%emt 0:00:22]} exd5 {[%emt 0:00:02]} 11. O-O {[%emt 0:00:12]} Nc6 {[%emt 0:04:59]} 12. Rc1 {[%emt 0:02:49]} Ba7 {[%emt 0:01:58]} 13. Ne5 {[%emt 0:11:49]} Ne7 {[%emt 0:08:49]} 14. Nf3 {[%emt 0:03:03]} Bf5 {[%emt 0:16:22]} 15. Nd4 {[%emt 0:03:31]} Be4 {[%emt 0:02:32]} 16. Bc7 {[%emt 0:09:58]} Qe8 {[%emt 0:05:45]} 17. Bd6 {[%emt 0:04:05]} Qd7 {[%emt 0:00:52]} 18. Bg3 {[%emt 0:01:09]} Bb8 {[%emt 0:06:14]} 19. Bxb8 {[%emt 0:02:33]} Raxb8 {[%emt 0:00:11]} 20. Bg4 {[%emt 0:01:35]} Qd6 {[%emt 0:00:11]} 21. Qe2 {[%emt 0:06:14]} Qg6 {[%emt 0:19:21]} 22. Rfd1 {[%emt 0:04:54]} Qb6 {[%emt 0:13:17]} 23. Nb3 {[%emt 0:04:44]} Rfd8 {[%emt 0:02:04]} 24. Nc5 {[%emt 0:03:52]} Bf5 {[%emt 0:00:34]} 25. Bf3 {[%emt 0:01:35]} Rbc8 {[%emt 0:02:18]} 26. Nb3 {[%emt 0:01:23]} Rxc1 {[%emt 0:02:34]} 27. Rxc1 {[%emt 0:00:22]} Nc6 {[%emt 0:00:38]} 28. Nc5 {[%emt 0:03:02]} h6 {[%emt 0:00:44]} 29. b3 {[%emt 0:01:10]} Ne5 {[%emt 0:01:34]} 30. a3 {[%emt 0:02:19]} a5 {[%emt 0:00:47]} 31. g4 {[%emt 0:01:16]} Bg6 {[%emt 0:01:10]} 32. Bg2 {[%emt 0:00:40]} Rc8 {[%emt 0:00:35]} 33. Nd3 {[%emt 0:00:47]} Rxc1+ {[%emt 0:00:05]} 34. Nxc1 {[%emt 0:00:08]} Qc5 {[%emt 0:00:17]} 35. Qd1 {[%emt 0:01:24]} Qxa3 {[%emt 0:01:10]} 36. Bxd5 {[%emt 0:01:06]} b5 {[%emt 0:00:35]} 37. h3 {[%emt 0:00:51]} Qc5 {[%emt 0:00:31]} 38. Bg2 {[%emt 0:00:38]} f5 {[%emt 0:00:32]} 39. gxf5 {[%emt 0:02:01]} Bxf5 {[%emt 0:00:06]} 40. Ne2 {[%emt 0:00:00]} Kh7 {[%emt 0:00:00]} 41. Ng3 {[%emt 0:01:41]} Bg6 {[%emt 0:03:58]} 42. h4 {[%emt 0:04:52]} Bc2 {[%emt 0:03:51]} 43. Qd8 {[%emt 0:04:54]} Ng4 {[%emt 0:04:08]} 44. Qd7 {[%emt 0:02:45]} Nf6 {[%emt 0:00:27]} 45. Qd2 {[%emt 0:02:46]} a4 {[%emt 0:03:05]} 46. bxa4 {[%emt 0:02:23]} bxa4 {[%emt 0:00:07]} 47. Ne2 {[%emt 0:00:36]} Bg6 {[%emt 0:01:15]} 48. Nc3 {[%emt 0:01:04]} a3 {[%emt 0:00:15]} 49. Na2 {[%emt 0:00:44]} Ne4 {[%emt 0:00:48]} 50. Qe2 {[%emt 0:01:46]} Nc3 {[%emt 0:01:31]} 51. Qd2 {[%emt 0:01:05]} Nxa2 {[%emt 0:00:08]} 52. Qxa2 {[%emt 0:00:06]} Qc1+ {[%emt 0:00:05]} 53. Kh2 {[%emt 0:00:39]} Qb2 {[%emt 0:00:26]} 54. Bd5 {[%emt 0:00:25]} Bb1 {[%emt 0:02:17]} 55. Qxb2 {[%emt 0:00:13]} axb2 {[%emt 0:00:04]} 56. Kg3 {[%emt 0:00:44]} Bc2 {[%emt 0:00:23]} 57. Ba2 {[%emt 0:00:08]} b1=Q {[%emt 0:00:02]} 58. Bxb1 {[%emt 0:00:08]} Bxb1 {[%emt 0:00:01]} 59. Kf4 {[%emt 0:00:50]} Kg6 {[%emt 0:00:29]} 60. f3 {[%emt 0:00:39]} Kf6 {[%emt 0:00:39]} 61. e4 {[%emt 0:01:54]} Bc2 {[%emt 0:01:02]} 62. Kg4 {[%emt 0:01:11]} Ke5 {[%emt 0:01:20]} 63. Kh5 {[%emt 0:00:30]} Kf6 {[%emt 0:00:06]} 64. Kg4 {[%emt 0:00:09]} Ke5 {[%emt 0:00:01]} 65. Kh5 {[%emt 0:00:09]} Bd1 {[%emt 0:00:51]} 66. Kg4 {[%emt 0:01:18]} Be2 {[%emt 0:00:56]} 67. h5 {[%emt 0:00:37]} Bd1 {[%emt 0:00:21]} 68. Kg3 {[%emt 0:00:25]} Ba4 {[%emt 0:00:13]} 69. Kh4 {[%emt 0:01:55]} Kf4 {[%emt 0:00:08]} 70. Kh3 {[%emt 0:00:33]} Be8 {[%emt 0:00:07]} 71. e5 {[%emt 0:00:11]} Kxe5 {[%emt 0:00:09]} 72. Kg4 {[%emt 0:00:09]} Bd7+ {[%emt 0:01:05]} 73. Kh4 {[%emt 0:00:28]} Kf5 {[%emt 0:00:17]} 74. f4 {[%emt 0:00:12]} Be8 {[%emt 0:00:07]} 0-1